[Event "*** Titled Tuesday Blitz"]
[Site "Chess.com"]
[Date "2018.07.03"]
[Round "9"]
[White "simplerXiao"]
[Black "DishonorOnYourCow"]
[Result "1-0"]
[WhiteElo "2335"]
[BlackElo "2231"]
[TimeControl "180+2"]
[EndTime "14:56:56 PDT"]
[Termination "simplerXiao won by resignation"]

1. e4 {[%clk 0:02:53.9]} 1... e5 {[%clk 0:02:57.8]} 2. Nf3 {[%clk 0:02:54.5]}
2... Nc6 {[%clk 0:02:59.3]} 3. Bc4 {[%clk 0:02:54.1]} 3... Bc5 {[%clk
0:02:59.5]} 4. O-O {[%clk 0:02:50.1]} 4... Nf6 {[%clk 0:02:59.6]} 5. Re1 {[%clk
0:02:49.6]} 5... d6 {[%clk 0:03:00.8]} 6. d3 {[%clk 0:02:50.7]} 6... O-O {[%clk
0:03:01.7]} 7. Bg5 {[%clk 0:02:49.6]} 7... a6 {[%clk 0:03:02.4]} 8. Nbd2 {[%clk
0:02:49.7]} 8... Ba7 {[%clk 0:03:02.7]} 9. c3 {[%clk 0:02:50.3]} 9... Ne7 {[%clk
0:02:59.2]} 10. Bxf6 {[%clk 0:02:50.4]} 10... gxf6 {[%clk 0:03:00.1]} 11. Nh4
{[%clk 0:02:51.3]} 11... Kh8 {[%clk 0:02:57.8]} 12. Qh5 {[%clk 0:02:50.7]} 12...
Ng6 {[%clk 0:02:57]} 13. Re3 {[%clk 0:02:40.2]} 13... Bxe3 {[%clk 0:02:56.9]}
14. fxe3 {[%clk 0:02:40.1]} 14... Be6 {[%clk 0:02:56.8]} 15. Bxe6 {[%clk
0:02:35.2]} 15... Nxh4 {[%clk 0:02:56.4]} 16. Bxf7 {[%clk 0:02:30.4]} 16... Qe7
{[%clk 0:02:50.7]} 17. Bb3 {[%clk 0:02:30.8]} 17... Ng6 {[%clk 0:02:49.4]} 18.
Rf1 {[%clk 0:02:30.3]} 18... Qg7 {[%clk 0:02:49.6]} 19. Rf3 {[%clk 0:02:27.2]}
19... c6 {[%clk 0:02:35.8]} 20. Nf1 {[%clk 0:02:26]} 20... Rad8 {[%clk
0:02:30.5]} 21. Ng3 {[%clk 0:02:23.3]} 21... d5 {[%clk 0:02:31]} 22. Nf5 {[%clk
0:02:24.3]} 22... Qf7 {[%clk 0:02:30.3]} 23. exd5 {[%clk 0:02:24.3]} 23... cxd5
{[%clk 0:02:31]} 24. e4 {[%clk 0:02:25.6]} 24... Nf4 {[%clk 0:02:14.4]} 25. Qxf7
{[%clk 0:02:19.7]} 25... Rxf7 {[%clk 0:02:14.1]} 26. exd5 {[%clk 0:02:20.8]}
26... Nxd5 {[%clk 0:02:11.6]} 27. Ne3 {[%clk 0:02:20.6]} 27... Nxe3 {[%clk
0:01:58.8]} 28. Bxf7 {[%clk 0:02:19.3]} 28... Rxd3 {[%clk 0:01:59.5]} 29. Kf2
{[%clk 0:01:54.6]} 29... Nd1+ {[%clk 0:01:57.6]} 30. Ke2 {[%clk 0:01:52.2]}
30... Rxf3 {[%clk 0:01:56.8]} 31. gxf3 {[%clk 0:01:46.7]} 31... Nxb2 {[%clk
0:01:57.3]} 32. Bb3 {[%clk 0:01:46.9]} 32... b5 {[%clk 0:01:54.6]} 33. Kd2
{[%clk 0:01:36.2]} 33... f5 {[%clk 0:01:54.2]} 34. Be6 {[%clk 0:01:32.6]} 34...
f4 {[%clk 0:01:53.8]} 35. Bc8 {[%clk 0:01:33.3]} 35... a5 {[%clk 0:01:53.3]} 36.
Bd7 {[%clk 0:01:31.1]} 36... b4 {[%clk 0:01:45.9]} 37. cxb4 {[%clk 0:01:30.7]}
37... axb4 {[%clk 0:01:47.1]} 38. Bb5 {[%clk 0:01:32.2]} 38... e4 {[%clk
0:01:42.1]} 39. fxe4 {[%clk 0:01:30.6]} 39... f3 {[%clk 0:01:43.2]} 40. Kc2
{[%clk 0:01:31.5]} 40... Kg7 {[%clk 0:00:53.9]} 41. Kxb2 {[%clk 0:00:23.4]}
41... Kf6 {[%clk 0:00:53.4]} 42. Kb3 {[%clk 0:00:22.1]} 42... Ke5 {[%clk
0:00:54.4]} 43. Kxb4 {[%clk 0:00:23.4]} 43... Kxe4 {[%clk 0:00:55.7]} 44. a4
{[%clk 0:00:24.5]} 44... f2 {[%clk 0:00:55.5]} 45. a5 {[%clk 0:00:25.5]} 45...
Kf3 {[%clk 0:00:56.9]} 46. a6 {[%clk 0:00:26.7]} 46... Kg2 {[%clk 0:00:58.3]}
47. a7 {[%clk 0:00:27.9]} 47... Kxh2 {[%clk 0:00:59.7]} 48. a8=Q {[%clk
0:00:28.7]} 48... h5 {[%clk 0:01:01.1]} 49. Qf3 {[%clk 0:00:28.3]} 49... Kg1
{[%clk 0:01:01.2]} 50. Qxh5 {[%clk 0:00:27.9]} 50... Kg2 {[%clk 0:01:00.7]} 51.
Qg4+ {[%clk 0:00:28.5]} 51... Kh1 {[%clk 0:01:01.9]} 52. Bc6+ {[%clk 0:00:28.7]}
1-0

[Event "*** Titled Tuesday Blitz"]
[Site "Chess.com"]
[Date "2018.07.03"]
[Round "9"]
[White "51616516516"]
[Black "chesstatour"]
[Result "1-0"]
[WhiteElo "2206"]
[BlackElo "2017"]
[TimeControl "180+2"]
[EndTime "14:57:03 PDT"]
[Termination "51616516516 won on time"]

1. Nf3 {[%clk 0:02:47.7]} 1... g6 {[%clk 0:02:57.7]} 2. d4 {[%clk 0:02:40.3]}
2... Bg7 {[%clk 0:02:59.6]} 3. c4 {[%clk 0:02:41.6]} 3... Nf6 {[%clk 0:02:58.5]}
4. g3 {[%clk 0:02:42.5]} 4... d5 {[%clk 0:02:58.2]} 5. cxd5 {[%clk 0:02:42.3]}
5... Nxd5 {[%clk 0:03:00.1]} 6. Bg2 {[%clk 0:02:43.2]} 6... O-O {[%clk
0:03:01.1]} 7. O-O {[%clk 0:02:44.2]} 7... c6 {[%clk 0:02:55.7]} 8. e4 {[%clk
0:02:40.8]} 8... Nf6 {[%clk 0:02:56.4]} 9. Nc3 {[%clk 0:02:40.1]} 9... Na6
{[%clk 0:02:51.8]} 10. h3 {[%clk 0:02:39]} 10... Bd7 {[%clk 0:02:30.8]} 11. Qe2
{[%clk 0:02:32.4]} 11... Re8 {[%clk 0:02:26.8]} 12. Rd1 {[%clk 0:02:31.8]} 12...
Nc7 {[%clk 0:02:22.5]} 13. Be3 {[%clk 0:02:15.6]} 13... Qc8 {[%clk 0:02:11.9]}
14. Kh2 {[%clk 0:02:15.5]} 14... Ne6 {[%clk 0:02:01.8]} 15. Rac1 {[%clk
0:02:11.7]} 15... Qd8 {[%clk 0:01:53.2]} 16. b4 {[%clk 0:01:42.2]} 16... a5
{[%clk 0:01:40.1]} 17. b5 {[%clk 0:01:43.1]} 17... a4 {[%clk 0:01:37.9]} 18. d5
{[%clk 0:01:26.3]} 18... cxd5 {[%clk 0:01:25.3]} 19. Nxd5 {[%clk 0:01:27]} 19...
Nxd5 {[%clk 0:01:07.2]} 20. Rxd5 {[%clk 0:01:23.4]} 20... Nc7 {[%clk 0:00:59.8]}
21. Bb6 {[%clk 0:01:21.5]} 21... Rc8 {[%clk 0:00:50.8]} 22. Rdc5 {[%clk
0:00:46.6]} 22... Bxb5 {[%clk 0:00:20.9]} 23. Rxb5 {[%clk 0:00:46.4]} 23... Qd7
{[%clk 0:00:17.5]} 24. Bxc7 {[%clk 0:00:39]} 24... Rxc7 {[%clk 0:00:18.4]} 25.
Rxc7 {[%clk 0:00:30.1]} 25... Qxc7 {[%clk 0:00:20.3]} 26. e5 {[%clk 0:00:27]}
26... Rc8 {[%clk 0:00:15.5]} 27. Qe4 {[%clk 0:00:26.4]} 27... Qc6 {[%clk
0:00:12]} 28. Qxc6 {[%clk 0:00:26.2]} 28... bxc6 {[%clk 0:00:10.1]} 29. Ra5
{[%clk 0:00:27.6]} 29... c5 {[%clk 0:00:05.6]} 30. Rxa4 {[%clk 0:00:28]} 30...
c4 {[%clk 0:00:07]} 31. Ne1 {[%clk 0:00:19.8]} 31... Bxe5 {[%clk 0:00:06]} 32.
Bd5 {[%clk 0:00:18.3]} 32... c3 {[%clk 0:00:04.7]} 33. Nc2 {[%clk 0:00:19.3]}
33... Rb8 {[%clk 0:00:03.9]} 34. Bb3 {[%clk 0:00:19.6]} 34... Rd8 {[%clk
0:00:04.3]} 35. Ra5 {[%clk 0:00:18.7]} 35... Bf6 {[%clk 0:00:03.1]} 36. Rd5
{[%clk 0:00:18.6]} 1-0

[Event "*** Titled Tuesday Blitz"]
[Site "Chess.com"]
[Date "2018.07.03"]
[Round "9"]
[White "Keures"]
[Black "canwedoit"]
[Result "0-1"]
[WhiteElo "2153"]
[BlackElo "2503"]
[TimeControl "180+2"]
[EndTime "14:57:19 PDT"]
[Termination "canwedoit won by resignation"]

1. d4 {[%clk 0:03:01.9]} 1... b6 {[%clk 0:02:59.4]} 2. c4 {[%clk 0:03:01.6]}
2... Bb7 {[%clk 0:03:01.3]} 3. Nc3 {[%clk 0:03:02.7]} 3... Nf6 {[%clk
0:03:00.5]} 4. Qc2 {[%clk 0:03:02.9]} 4... d5 {[%clk 0:02:56.8]} 5. cxd5 {[%clk
0:03:02.5]} 5... Nxd5 {[%clk 0:02:57.8]} 6. e4 {[%clk 0:03:03.6]} 6... Nxc3
{[%clk 0:02:13.7]} 7. bxc3 {[%clk 0:03:04.3]} 7... e6 {[%clk 0:02:15.3]} 8. Ba3
{[%clk 0:02:55.7]} 8... Bxa3 {[%clk 0:02:11.2]} 9. Qa4+ {[%clk 0:02:56.6]} 9...
Qd7 {[%clk 0:02:08.5]} 10. Qxa3 {[%clk 0:02:47.5]} 10... Bxe4 {[%clk 0:02:09.9]}
11. f3 {[%clk 0:02:39.6]} 11... Bb7 {[%clk 0:02:09.2]} 12. Nh3 {[%clk
0:02:38.8]} 12... Qe7 {[%clk 0:02:07.1]} 13. Qa4+ {[%clk 0:02:37.4]} 13... Bc6
{[%clk 0:02:04.1]} 14. Bb5 {[%clk 0:02:28.4]} 14... Bxb5 {[%clk 0:02:03.7]} 15.
Qxb5+ {[%clk 0:02:30.3]} 15... Qd7 {[%clk 0:02:05.3]} 16. Qh5 {[%clk 0:02:26.5]}
16... Nc6 {[%clk 0:01:49.7]} 17. O-O {[%clk 0:02:21]} 17... O-O {[%clk
0:01:47.2]} 18. Rae1 {[%clk 0:02:02.1]} 18... Qd5 {[%clk 0:01:43.8]} 19. Qh4
{[%clk 0:01:48.7]} 19... h6 {[%clk 0:01:41.7]} 20. Re4 {[%clk 0:01:46]} 20...
Qd8 {[%clk 0:01:31]} 21. Qh5 {[%clk 0:01:41.9]} 21... Ne7 {[%clk 0:01:27.2]} 22.
Rg4 {[%clk 0:01:29.3]} 22... Nf5 {[%clk 0:01:22]} 23. Re1 {[%clk 0:00:59.7]}
23... c5 {[%clk 0:01:17.9]} 24. Rf4 {[%clk 0:00:32.3]} 24... cxd4 {[%clk
0:01:14.9]} 25. g4 {[%clk 0:00:33.1]} 25... Qh4 {[%clk 0:01:12.9]} 26. Qxh4
{[%clk 0:00:26.3]} 26... Nxh4 {[%clk 0:01:13.1]} 27. cxd4 {[%clk 0:00:21.1]}
27... Rad8 {[%clk 0:01:13.7]} 28. Kf2 {[%clk 0:00:21.1]} 28... g5 {[%clk
0:01:12.1]} 29. Rfe4 {[%clk 0:00:21.9]} 29... Rd5 {[%clk 0:01:08.3]} 30. Kg3
{[%clk 0:00:22.9]} 30... Rfd8 {[%clk 0:01:06.3]} 31. f4 {[%clk 0:00:22]} 31...
Ng6 {[%clk 0:01:03.6]} 32. fxg5 {[%clk 0:00:19.7]} 32... hxg5 {[%clk 0:01:05.5]}
33. Rd1 {[%clk 0:00:20.6]} 33... Kg7 {[%clk 0:00:54.9]} 34. Rd3 {[%clk
0:00:18.8]} 34... f5 {[%clk 0:00:45.8]} 35. gxf5 {[%clk 0:00:18.4]} 35... exf5
{[%clk 0:00:46.9]} 36. Re6 {[%clk 0:00:18.8]} 36... f4+ {[%clk 0:00:41]} 37. Kg4
{[%clk 0:00:19.9]} 37... Ne5+ {[%clk 0:00:35.1]} 38. Rxe5 {[%clk 0:00:18.6]}
38... Rxe5 {[%clk 0:00:35.7]} 39. Nxg5 {[%clk 0:00:19.1]} 39... Re3 {[%clk
0:00:23.6]} 40. Rxe3 {[%clk 0:00:12.8]} 40... fxe3 {[%clk 0:00:25.5]} 41. Kf3
{[%clk 0:00:14.1]} 41... Re8 {[%clk 0:00:21.7]} 42. d5 {[%clk 0:00:14.1]} 42...
e2 {[%clk 0:00:21.4]} 0-1

[Event "*** Titled Tuesday Blitz"]
[Site "Chess.com"]
[Date "2018.07.03"]
[Round "9"]
[White "Yurovskykh_Oleksandr"]
[Black "Saitama_Hero"]
[Result "0-1"]
[WhiteElo "2393"]
[BlackElo "2343"]
[TimeControl "180+2"]
[EndTime "14:57:27 PDT"]
[Termination "Saitama_Hero won by resignation"]

1. d4 {[%clk 0:03:01.3]} 1... d6 {[%clk 0:02:59.2]} 2. Nf3 {[%clk 0:03:00.7]}
2... f5 {[%clk 0:03:00.6]} 3. g3 {[%clk 0:02:59.5]} 3... Nf6 {[%clk 0:03:02.5]}
4. Bg2 {[%clk 0:03:00.9]} 4... g6 {[%clk 0:03:03.6]} 5. O-O {[%clk 0:03:02.4]}
5... Bg7 {[%clk 0:03:03.9]} 6. b3 {[%clk 0:03:03.8]} 6... O-O {[%clk 0:03:05.3]}
7. Bb2 {[%clk 0:03:05.1]} 7... Qe8 {[%clk 0:03:04.7]} 8. Nbd2 {[%clk 0:03:03.9]}
8... Nc6 {[%clk 0:03:01.5]} 9. Nc4 {[%clk 0:03:04.1]} 9... Be6 {[%clk
0:02:52.9]} 10. Ne3 {[%clk 0:02:43.8]} 10... Ne4 {[%clk 0:02:24.6]} 11. c3
{[%clk 0:02:28.8]} 11... Bf7 {[%clk 0:02:20.7]} 12. Nd2 {[%clk 0:02:28.4]} 12...
Nxd2 {[%clk 0:02:19.1]} 13. Qxd2 {[%clk 0:02:30.3]} 13... e5 {[%clk 0:02:18.8]}
14. d5 {[%clk 0:02:31.3]} 14... Ne7 {[%clk 0:02:15.9]} 15. c4 {[%clk 0:02:32.5]}
15... g5 {[%clk 0:02:04.2]} 16. Nc2 {[%clk 0:02:23.6]} 16... f4 {[%clk 0:02:04]}
17. g4 {[%clk 0:02:14]} 17... h5 {[%clk 0:01:55.6]} 18. h3 {[%clk 0:02:13.4]}
18... hxg4 {[%clk 0:01:54.5]} 19. hxg4 {[%clk 0:02:15.3]} 19... Qd7 {[%clk
0:01:53.2]} 20. f3 {[%clk 0:02:06.2]} 20... Ng6 {[%clk 0:01:49.7]} 21. e4 {[%clk
0:02:01.2]} 21... fxe3 {[%clk 0:01:44.3]} 22. Nxe3 {[%clk 0:02:02.7]} 22... Nf4
{[%clk 0:01:45.6]} 23. Rf2 {[%clk 0:02:02.7]} 23... Bg6 {[%clk 0:01:45.7]} 24.
Bf1 {[%clk 0:02:03.1]} 24... Rae8 {[%clk 0:01:41.9]} 25. Rh2 {[%clk 0:02:04.1]}
25... e4 {[%clk 0:01:38.9]} 26. Bxg7 {[%clk 0:02:04.9]} 26... Qxg7 {[%clk
0:01:40.6]} 27. Qb2 {[%clk 0:02:02.1]} 27... exf3 {[%clk 0:01:34]} 28. Qxg7+
{[%clk 0:02:02.1]} 28... Kxg7 {[%clk 0:01:35.3]} 29. Kf2 {[%clk 0:02:04]} 29...
Bd3 {[%clk 0:01:23]} 30. Re1 {[%clk 0:01:57.3]} 30... Bxf1 {[%clk 0:01:22.4]}
31. Kxf1 {[%clk 0:01:59.2]} 31... Kg6 {[%clk 0:00:40.4]} 32. Nf5 {[%clk
0:01:57.9]} 32... Rxe1+ {[%clk 0:00:40.4]} 33. Kxe1 {[%clk 0:01:59.8]} 33...
Re8+ {[%clk 0:00:38.1]} 34. Kf1 {[%clk 0:02:00.8]} 34... Re2 {[%clk 0:00:33.6]}
35. Rxe2 {[%clk 0:01:47.8]} 35... fxe2+ {[%clk 0:00:31.2]} 36. Kf2 {[%clk
0:01:48.7]} 36... Kf6 {[%clk 0:00:29.8]} 37. Nd4 {[%clk 0:01:49.9]} 37... Nd3+
{[%clk 0:00:26.4]} 38. Kxe2 {[%clk 0:01:49.8]} 38... Nc1+ {[%clk 0:00:27.4]} 39.
Kd2 {[%clk 0:01:44.4]} 39... Nxa2 {[%clk 0:00:28.7]} 40. Ne6 {[%clk 0:01:45.7]}
40... c6 {[%clk 0:00:25.5]} 41. dxc6 {[%clk 0:01:46.3]} 41... bxc6 {[%clk
0:00:24.5]} 42. Nd4 {[%clk 0:01:45.8]} 42... Nb4 {[%clk 0:00:25.1]} 43. Kc3
{[%clk 0:01:46.1]} 43... a5 {[%clk 0:00:26.5]} 44. Nf3 {[%clk 0:01:46.5]} 44...
c5 {[%clk 0:00:20]} 45. Kd2 {[%clk 0:01:41.7]} 45... Nc6 {[%clk 0:00:20.1]} 46.
Ke3 {[%clk 0:01:27.8]} 46... Ne5 {[%clk 0:00:21.1]} 47. Nh2 {[%clk 0:01:29.4]}
47... Ng6 {[%clk 0:00:19.9]} 48. Ke4 {[%clk 0:01:28.9]} 48... Ne5 {[%clk
0:00:15]} 49. Kd5 {[%clk 0:01:24.9]} 49... Ke7 {[%clk 0:00:14.6]} 50. Ke4 {[%clk
0:01:25.5]} 50... Ke6 {[%clk 0:00:14.1]} 51. Ke3 {[%clk 0:01:26.3]} 51... d5
{[%clk 0:00:15.4]} 52. cxd5+ {[%clk 0:01:27.4]} 52... Kxd5 {[%clk 0:00:16.5]}
53. Kd2 {[%clk 0:01:24.8]} 53... Kd4 {[%clk 0:00:16.4]} 54. Kc2 {[%clk 0:01:26]}
54... Ke3 {[%clk 0:00:14]} 55. Nf1+ {[%clk 0:01:25.1]} 55... Kf4 {[%clk
0:00:14.3]} 56. Nd2 {[%clk 0:01:25.7]} 56... Nxg4 {[%clk 0:00:13.4]} 57. Nc4
{[%clk 0:01:26.9]} 57... Ne3+ {[%clk 0:00:14.2]} 0-1

[Event "*** Titled Tuesday Blitz"]
[Site "Chess.com"]
[Date "2018.07.03"]
[Round "9"]
[White "AndrewDGreen"]
[Black "maheswaran26"]
[Result "0-1"]
[WhiteElo "2167"]
[BlackElo "2009"]
[TimeControl "180+2"]
[EndTime "14:57:28 PDT"]
[Termination "maheswaran26 won by resignation"]

1. d4 {[%clk 0:03:01.9]} 1... Nf6 {[%clk 0:02:56.1]} 2. Nf3 {[%clk 0:03:02]}
2... g6 {[%clk 0:02:55]} 3. Nc3 {[%clk 0:03:02.7]} 3... d5 {[%clk 0:02:53.4]} 4.
Bf4 {[%clk 0:03:03.4]} 4... Bg7 {[%clk 0:02:52.5]} 5. e3 {[%clk 0:03:04.6]} 5...
O-O {[%clk 0:02:52.6]} 6. Be2 {[%clk 0:03:05.3]} 6... c5 {[%clk 0:02:53.1]} 7.
O-O {[%clk 0:03:05.8]} 7... Nc6 {[%clk 0:02:53]} 8. dxc5 {[%clk 0:03:05.9]} 8...
Qa5 {[%clk 0:02:07.2]} 9. Nxd5 {[%clk 0:03:04.8]} 9... Nxd5 {[%clk 0:02:05.5]}
10. Qxd5 {[%clk 0:03:06.7]} 10... Bxb2 {[%clk 0:02:04.2]} 11. Rab1 {[%clk
0:03:07.1]} 11... Bg7 {[%clk 0:02:01.7]} 12. Nd4 {[%clk 0:02:59.9]} 12... e5
{[%clk 0:01:07.3]} 13. Nxc6 {[%clk 0:02:58.8]} 13... bxc6 {[%clk 0:01:05.6]} 14.
Qxc6 {[%clk 0:03:00.1]} 14... Be6 {[%clk 0:01:02.1]} 15. Bg3 {[%clk 0:02:55.3]}
15... Qxa2 {[%clk 0:00:58.3]} 16. Bf3 {[%clk 0:02:33]} 16... Rac8 {[%clk
0:00:56.3]} 17. Qb5 {[%clk 0:02:24.4]} 17... Bc4 {[%clk 0:00:48.4]} 18. Qb4
{[%clk 0:02:12.6]} 18... Bxf1 {[%clk 0:00:47.8]} 19. Rxf1 {[%clk 0:02:12.6]}
19... Qxc2 {[%clk 0:00:47.6]} 20. c6 {[%clk 0:02:13.7]} 20... Rxc6 {[%clk
0:00:44.1]} 21. Bxc6 {[%clk 0:02:14.3]} 21... Qxc6 {[%clk 0:00:44.7]} 22. Qa5
{[%clk 0:02:11.9]} 22... Qb6 {[%clk 0:00:38]} 23. Ra1 {[%clk 0:02:06]} 23... Rb8
{[%clk 0:00:29.7]} 24. h3 {[%clk 0:01:57.5]} 24... Qxa5 {[%clk 0:00:09.5]} 25.
Rxa5 {[%clk 0:01:59.4]} 25... Ra8 {[%clk 0:00:09]} 26. e4 {[%clk 0:01:58.5]}
26... a6 {[%clk 0:00:08.6]} 27. f3 {[%clk 0:01:57.6]} 27... f6 {[%clk
0:00:08.8]} 28. Bf2 {[%clk 0:01:55.5]} 28... Bf8 {[%clk 0:00:09.3]} 29. Kf1
{[%clk 0:01:54.1]} 29... Bb4 {[%clk 0:00:09.8]} 30. Ra2 {[%clk 0:01:54.1]} 30...
a5 {[%clk 0:00:10.7]} 31. Ke2 {[%clk 0:01:55.7]} 31... a4 {[%clk 0:00:11.4]} 32.
Kd3 {[%clk 0:01:57.4]} 32... a3 {[%clk 0:00:11.5]} 33. Kc4 {[%clk 0:01:58.9]}
33... Be7 {[%clk 0:00:12]} 34. Be1 {[%clk 0:01:48.1]} 34... Rb8 {[%clk 0:00:12]}
35. Bc3 {[%clk 0:01:48.6]} 35... Kf7 {[%clk 0:00:12]} 36. g4 {[%clk 0:01:42.5]}
36... Ke6 {[%clk 0:00:12.2]} 37. h4 {[%clk 0:01:38.5]} 37... h5 {[%clk
0:00:12.4]} 38. gxh5 {[%clk 0:01:38.5]} 38... gxh5 {[%clk 0:00:12.8]} 39. Rg2
{[%clk 0:01:39.4]} 39... Rb1 {[%clk 0:00:11]} 40. Rf2 {[%clk 0:01:31.5]} 40...
Rh1 {[%clk 0:00:10.1]} 41. Bb4 {[%clk 0:01:21.3]} 41... Rc1+ {[%clk 0:00:07.2]}
42. Kb5 {[%clk 0:01:11]} 42... Rb1 {[%clk 0:00:07.1]} 43. Ka4 {[%clk 0:01:12.3]}
43... Rxb4+ {[%clk 0:00:07.4]} 44. Kxa3 {[%clk 0:01:13.7]} 44... Rxe4+ {[%clk
0:00:08.2]} 45. Kb3 {[%clk 0:01:15.2]} 45... Rxh4 {[%clk 0:00:08.6]} 46. Kc2
{[%clk 0:01:15.7]} 46... Kf5 {[%clk 0:00:09.3]} 47. Kd3 {[%clk 0:01:17.1]} 47...
Rd4+ {[%clk 0:00:09.6]} 48. Ke3 {[%clk 0:01:17.8]} 48... Bc5 {[%clk 0:00:10.4]}
49. Ke2 {[%clk 0:01:16.8]} 49... Rd2+ {[%clk 0:00:10.9]} 50. Kxd2 {[%clk
0:01:17.6]} 50... Bxf2 {[%clk 0:00:11.9]} 51. Ke2 {[%clk 0:01:19.5]} 51... Bd4
{[%clk 0:00:12.6]} 52. Kf1 {[%clk 0:01:20.7]} 52... Kf4 {[%clk 0:00:13.5]} 53.
Ke1 {[%clk 0:01:20.7]} 53... Kxf3 {[%clk 0:00:14.2]} 54. Kf1 {[%clk 0:01:22.2]}
54... e4 {[%clk 0:00:15.3]} 55. Ke1 {[%clk 0:01:23.6]} 55... e3 {[%clk
0:00:16.5]} 56. Kf1 {[%clk 0:01:25.5]} 56... e2+ {[%clk 0:00:17.5]} 0-1

[Event "*** Titled Tuesday Blitz"]
[Site "Chess.com"]
[Date "2018.07.03"]
[Round "9"]
[White "ENEASZ"]
[Black "Margency"]
[Result "0-1"]
[WhiteElo "2517"]
[BlackElo "2662"]
[TimeControl "180+2"]
[EndTime "14:57:38 PDT"]
[Termination "Margency won by resignation"]

1. e4 {[%clk 0:03:01.9]} 1... c5 {[%clk 0:02:59]} 2. c3 {[%clk 0:03:02.4]} 2...
d5 {[%clk 0:02:59.9]} 3. exd5 {[%clk 0:03:04.3]} 3... Qxd5 {[%clk 0:03:01.4]} 4.
d4 {[%clk 0:03:05.9]} 4... Nc6 {[%clk 0:03:02.2]} 5. Nf3 {[%clk 0:03:07]} 5...
Bf5 {[%clk 0:03:00.9]} 6. Be2 {[%clk 0:03:06.4]} 6... e6 {[%clk 0:02:55.5]} 7.
c4 {[%clk 0:03:06.1]} 7... Qd6 {[%clk 0:02:48.5]} 8. Nc3 {[%clk 0:02:58.6]} 8...
cxd4 {[%clk 0:02:39.1]} 9. Nb5 {[%clk 0:02:58.7]} 9... Qd8 {[%clk 0:02:40.1]}
10. O-O {[%clk 0:02:56]} 10... Bc5 {[%clk 0:02:36.8]} 11. b4 {[%clk 0:02:57]}
11... Bxb4 {[%clk 0:02:34.9]} 12. Qa4 {[%clk 0:01:10.2]} 12... d3 {[%clk
0:02:23.8]} 13. Rd1 {[%clk 0:01:09.5]} 13... Nge7 {[%clk 0:02:16.6]} 14. Bf1
{[%clk 0:00:39.1]} 14... O-O {[%clk 0:02:14.7]} 15. Bd2 {[%clk 0:00:32.7]} 15...
Bc5 {[%clk 0:02:09.5]} 16. Rab1 {[%clk 0:00:23.6]} 16... Ng6 {[%clk 0:01:47.4]}
17. Nc3 {[%clk 0:00:20.9]} 17... Qc7 {[%clk 0:01:13]} 18. h3 {[%clk 0:00:21.4]}
18... e5 {[%clk 0:01:08.5]} 19. Qb5 {[%clk 0:00:21]} 19... b6 {[%clk 0:00:56.4]}
20. Nd5 {[%clk 0:00:22.1]} 20... Qd7 {[%clk 0:00:52.5]} 21. Be3 {[%clk
0:00:23.2]} 21... e4 {[%clk 0:00:48.5]} 22. Bxc5 {[%clk 0:00:21.8]} 22... bxc5
{[%clk 0:00:49.8]} 23. Nh2 {[%clk 0:00:20.1]} 23... Rab8 {[%clk 0:00:49]} 24.
Qa6 {[%clk 0:00:18.1]} 24... Nd4 {[%clk 0:00:44.6]} 25. Rxb8 {[%clk 0:00:13]}
25... Rxb8 {[%clk 0:00:45.1]} 26. h4 {[%clk 0:00:07.9]} 26... Nxh4 {[%clk
0:00:43.2]} 27. Ne3 {[%clk 0:00:06]} 27... Be6 {[%clk 0:00:41.5]} 28. Qa5 {[%clk
0:00:03.7]} 28... Rc8 {[%clk 0:00:35.9]} 29. Qa6 {[%clk 0:00:04.2]} 29... h6
{[%clk 0:00:35.1]} 30. Qa5 {[%clk 0:00:05.1]} 30... Ng6 {[%clk 0:00:35.2]} 31.
g3 {[%clk 0:00:05.7]} 31... Ne5 {[%clk 0:00:36.2]} 32. Bg2 {[%clk 0:00:07]}
32... Qc7 {[%clk 0:00:35.9]} 33. Qa4 {[%clk 0:00:07.7]} 33... f5 {[%clk
0:00:35.8]} 34. Kh1 {[%clk 0:00:03.4]} 34... Rb8 {[%clk 0:00:34.2]} 35. Qa3
{[%clk 0:00:03.1]} 35... Kh7 {[%clk 0:00:34.2]} 36. Qa4 {[%clk 0:00:03.5]} 36...
Rb2 {[%clk 0:00:34.3]} 37. Rf1 {[%clk 0:00:03.9]} 37... Qd7 {[%clk 0:00:33.9]}
38. Qa6 {[%clk 0:00:03.8]} 38... Rb6 {[%clk 0:00:34]} 39. Qa5 {[%clk 0:00:04.2]}
39... Qc7 {[%clk 0:00:34.8]} 40. Qa4 {[%clk 0:00:05.3]} 40... Ng6 {[%clk
0:00:33]} 41. Qe8 {[%clk 0:00:05.1]} 41... Qd7 {[%clk 0:00:31.9]} 42. Qa8 {[%clk
0:00:06.1]} 42... Qb7 {[%clk 0:00:32]} 43. Qd8 {[%clk 0:00:06.7]} 43... Qb8
{[%clk 0:00:31.1]} 44. Qxb8 {[%clk 0:00:02.6]} 44... Rxb8 {[%clk 0:00:31.6]} 45.
g4 {[%clk 0:00:04.5]} 45... f4 {[%clk 0:00:31.2]} 46. Nf5 {[%clk 0:00:05.3]}
46... Nxf5 {[%clk 0:00:31.2]} 0-1